Cogmind - Beta 11.1 @@@ ROGUE MODE // 2022.11.13 @ 14:27:28 Player: Hilbert Result: Destroyed by H-71 Marshal with Heavy Mass Driver Performance ------------- Evolutions (5) 2500 Regions Visited (7) 1400 Robots Destroyed (4) 20 Value Destroyed (62) 62 Prototype IDs (1) 20 Alien Tech Used (0) 0 Bonus (2487) 2487 TOTAL SCORE: 6489 Bonus ------- Pacifist 1987 Entered DSFs 500 Cogmind --------- Core Integrity 0/1000 Matter 300/300 Energy 99/100 System Corruption 7% Temperature Cool (0) Movement Core (50) Location -5/Factory Parts ------- > --- POWER (1) -------- (None) > --- PROPULSION (12) -- (None) > --- UTILITY (2) ------ (None) > --- WEAPON (2) ------- (None) > --- INVENTORY (5) ---- Improved Deuterium Engine Improved Medium Armor Plating Peak State ------------ > --- POWER ------------ (None) > --- PROPULSION ------- Titanium Leg Improved VSS Leg Gravmag Array Field Propulsion Drive Field Propulsion Drive Field Propulsion Drive Field Propulsion Drive Field Propulsion Drive > --- UTILITY ---------- Hacking Suite > --- WEAPON ----------- Maul > --- INVENTORY -------- Improved Deuterium Engine Improved Medium Armor Plating [Rating: 53] Favorites ----------- Power Light Ion Engine Engine Light Ion Engine Propulsion Titanium Leg Treads Light Treads Leg Titanium Leg Wheel Compact Wheel Hover Unit Airjet Flight Unit Field Propulsion Drive Utility Hacking Suite Hackware Hacking Suite Weapon Maul Energy Gun EM Pulse Gun Ballistic Gun Assault Rifle Impact Weapon Maul Build | -11 -10 -9 -8 -7 -7 -6 -5 ------- Run | Scr Mat Mat Mat Fac DSF Fac Fac Slots Evolved 10 | . . 2 2 2 . 2 2 Power . | . . . . . . . . Propulsion 10 | . . 2 2 2 . 2 2 Utility . | . . . . . . . . Weapon . | . . . . . . . . Parts Attached 23 | . 2 2 2 1 5 3 8 Power 1 | . 1 . . . . . . Engine 1 | . 1 . . . . . . Core . | . . . . . . . . Reactor . | . . . . . . . . Propulsion 20 | . . 2 2 1 5 2 8 Treads 2 | . . 2 . . . . . Leg 6 | . . . 1 . 4 1 . Wheel 4 | . . . 1 1 . . 2 Hover 3 | . . . . . 1 1 1 Flight 5 | . . . . . . . 5 Utility 1 | . . . . . . 1 . Device . | . . . . . . . . Storage . | . . . . . . . . Processor . | . . . . . . . . Hackware 1 | . . . . . . 1 . Protection . | . . . . . . . . Artifact . | . . . . . . . . Weapon 1 | . 1 . . . . . . Energy Gun . | . . . . . . . . Energy Cannon . | . . . . . . . . Ballistic Gun . | . . . . . . . . Ballistic Cannon . | . . . . . . . . Launcher . | . . . . . . . . Special Weapon . | . . . . . . . . Impact Weapon 1 | . 1 . . . . . . Slashing Weapon . | . . . . . . . . Piercing Weapon . | . . . . . . . . Special Melee Weapon . | . . . . . . . . Unidentified Prototypes 1 | . 1 . . . . . . Corrupted Parts 1 | . . . . . . . 1 System Corruption 2 | . . . . . . . 2 Parts Lost 22 | . . . . . 4 3 15 Power . | . . . . . . . . Propulsion 21 | . . . . . 4 3 14 Utility . | . . . . . . . . Weapon 1 | . . . . . . . 1 Highest Loss Streak 12 | . . . . . 4 3 12 To Critical Strikes . | . . . . . . . . Average Slot Usage (%) 52 | . 52 55 63 61 59 62 40 Treads 8 | . . 22 18 15 15 12 1 Leg 22 | . 28 22 27 23 20 26 16 Wheel 4 | . . . 9 15 7 . 5 Hover 4 | . . . . . 7 12 1 Hackware 2 | . . . . . . 3 5 Impact Weapon 6 | . 4 11 9 7 7 6 5 Naked Turns 5 | . . . . . . . 5 Heaviest Build 4 | 4 4 3 3 3 3 3 3 Greatest Support 21 | 3 3 3 3 10 17 8 21 Greatest Overweight (x) 1 | 1 1 . . . . . . Average Overweight (x) . | 1 . . . . . . . Largest Inventory Capacity 5 | 5 5 5 5 5 5 5 5 Average Capacity 5 | 5 5 5 5 5 5 5 5 Most Carried 5 | 5 5 4 2 2 3 2 2 Average Carried 2 | 5 4 3 1 1 2 1 2 Final Capacity 5 | 5 5 5 5 5 5 5 5 Final Carried 5 | 5 5 3 1 2 3 2 2 Class Distribution -------------------- 100% | Mutant Dominant Class ---------------- Mutant | -10/Materials Mutant | -9/Materials Mutant | -8/Materials Mutant | -7/Factory Mutant | -7/DSF Mutant | -6/Factory Mutant | -5/Factory Resources | -11 -10 -9 -8 -7 -7 -6 -5 ----------- Run | Scr Mat Mat Mat Fac DSF Fac Fac Matter Collected 348 | 200 . . . . . . 148 Remotely . | . . . . . . . . Salvage Created 261 | . . . . . . . 261 Parts 5 | . . . . . . . 5 Haulers Intercepted . | . . . . . . . . Recyclers Shooed . | . . . . . . . . Parts Field Recycled . | . . . . . . . . Retrieved Matter . | . . . . . . . . Parts Self-Destructed . | . . . . . . . . Prevented . | . . . . . . . . Kills | -11 -10 -9 -8 -7 -7 -6 -5 ------- Run | Scr Mat Mat Mat Fac DSF Fac Fac Combat Hostiles Destroyed 1 | . . . . . . . 1 Classes Destroyed 3 | . . . . . . . 3 Worker 2 | . . . . . . . 2 Recycler 1 | . . . . . . . 1 Grunt 1 | . . . . . . . 1 Best Kill Streak 2 | . . . . . . . 2 Combat Bots Only 1 | . . . . . . . 1 Max Kills in Single Turn 1 | . . . . . . . 1 Gunslinging . | . . . . . . . . Exploded . | . . . . . . . . Melee . | . . . . . . . . Uniques/NPCs Destroyed . | . . . . . . . . Combat | -11 -10 -9 -8 -7 -7 -6 -5 -------- Run | Scr Mat Mat Mat Fac DSF Fac Fac Damage Taken 2992 | . 11 29 47 . 332 653 1920 Core 1107 | . . . . . . 55 1052 Absorbed by Shields . | . . . . . . . . Core Remaining (%) 98 | 100 100 100 100 . 100 93 . Volleys Fired . | . . . . . . . . Largest . | . . . . . . . . Hottest . | . . . . . . . . Shots Fired . | . . . . . . . . Gun . | . . . . . . . . Cannon . | . . . . . . . . Launcher . | . . . . . . . . Special . | . . . . . . . . Kinetic . | . . . . . . . . Thermal . | . . . . . . . . Explosive . | . . . . . . . . Electromagnetic . | . . . . . . . . Robot Hit Streak . | . . . . . . . . Robot Miss Streak . | . . . . . . . . Penetration Max . | . . . . . . . . Secondary Targets . | . . . . . . . . Shots Hit Robots 7 | . . . . . . . 7 Core Hits 2 | . . . . . . . 2 Critical Kills 1 | . . . . . . . 1 Critical Parts Destroyed 2 | . . . . . . . 2 Critical Strikes 3 | . . . . . . . 3 Smash 3 | . . . . . . . 3 Melee Attacks 20 | . . . . 1 . 10 9 Impact 20 | . . . . 1 . 10 9 Slashing . | . . . . . . . . Piercing . | . . . . . . . . Sneak Attacks 3 | . . . . . . . 3 Combat Hostiles . | . . . . . . . . Follow-up Attacks . | . . . . . . . . Damage Inflicted 328 | . . . . . . . 328 Guns . | . . . . . . . . Cannons . | . . . . . . . . Explosions . | . . . . . . . . Melee 328 | . . . . . . . 328 Ramming . | . . . . . . . . Kinetic . | . . . . . . . . Thermal . | . . . . . . . . Explosive . | . . . . . . . . Electromagnetic . | . . . . . . . . Impact 328 | . . . . . . . 328 Slashing . | . . . . . . . . Piercing . | . . . . . . . . Highest Corruption 7 | . . . 2 . . . 7 Average Corruption 3 | . . . 2 . . . 3 Corruption Purged . | . . . . . . . . Corruption Blocked . | . . . . . . . . Effects 5 | . . . . . . . 5 Message Errors 1 | . . . . . . . 1 Matter Fused 1 | . . . . . . . 1 Heat Flow Errors 2 | . . . . . . . 2 Data Loss (minor) 1 | . . . . . . . 1 Overload Shots . | . . . . . . . . Overflow Damage 113 | . . . . . . . 113 Projectiles . | . . . . . . . . Explosions . | . . . . . . . . Melee 113 | . . . . . . . 113 Knockbacks 2 | . . . . . . . 2 Impact 2 | . . . . . . . 2 Kinetic . | . . . . . . . . Secondary . | . . . . . . . . Self-Inflicted Damage . | . . . . . . . . Shots . | . . . . . . . . Rammed . | . . . . . . . . Targets Rammed . | . . . . . . . . Kicked . | . . . . . . . . Crushed . | . . . . . . . . Highest Temperature 259 | . . . . . . . 259 Average Temperature 113 | . . . . . . . 113 Received Heat Transfer 526 | . 6 15 9 . . 102 394 Siege Activations . | . . . . . . . . Robots Corrupted . | . . . . . . . . Combat Hostiles . | . . . . . . . . Parts Fried 1 | . . . . . . . 1 Impact Corruptions 3 | . . . . . . . 3 Robots Melted . | . . . . . . . . Combat Hostiles . | . . . . . . . . Parts Melted . | . . . . . . . . Heat Transferred . | . . . . . . . . Parts Sabotaged . | . . . . . . . . Parts Stolen . | . . . . . . . . Parts Stripped . | . . . . . . . . Power Chain Reactions . | . . . . . . . . Missiles Intercepted . | . . . . . . . . Alert | -11 -10 -9 -8 -7 -7 -6 -5 ------- Run | Scr Mat Mat Mat Fac DSF Fac Fac Peak Influence 216 | . . 23 78 36 25 85 216 Initial 36 | . . . 9 35 25 . 36 Average 49 | . . 17 38 35 11 17 103 Maximum Alert Level 1 | . . . . . . . 1 Low Security (%) 99 | 100 100 100 100 100 100 100 97 Level 1 . | . . . . . . . 2 Level 2 . | . . . . . . . . Level 3 . | . . . . . . . . Level 4 . | . . . . . . . . Level 5 . | . . . . . . . . High Security . | . . . . . . . . Max Security . | . . . . . . . . Squads Dispatched 8 | . 2 . . . . 1 5 Investigation . | . . . . . . . . Extermination 1 | . . . . . . . 1 Reinforcement 7 | . 2 . . . . 1 4 Assault . | . . . . . . . . Garrison . | . . . . . . . . Intercept . | . . . . . . . . Searches Triggered . | . . . . . . . . Construction Impeded . | . . . . . . . . Haulers Reinforced . | . . . . . . . . Active Scanning Responses . | . . . . . . . . Cargo Convoy Interrupts . | . . . . . . . . Stealth | -11 -10 -9 -8 -7 -7 -6 -5 --------- Run | Scr Mat Mat Mat Fac DSF Fac Fac Distress Signals 3 | . . . 1 . . 1 1 Communications Jammed . | . . . . . . . . Distress Signals . | . . . . . . . . Times Spotted 59 | . 3 3 4 . 1 18 30 Peak Tracking Total 11 | . 1 3 4 . 1 11 10 Tactical Retreats 9 | . . . 1 . . 2 6 Traps | -11 -10 -9 -8 -7 -7 -6 -5 ------- Run | Scr Mat Mat Mat Fac DSF Fac Fac Traps Triggered 1 | . . . 1 . . . . Indirectly . | . . . . . . . . Trap Hack Attempts . | . . . . . . . . Triggered . | . . . . . . . . Disarmed . | . . . . . . . . Reprogrammed . | . . . . . . . . Reused . | . . . . . . . . Traps Extracted . | . . . . . . . . Installed . | . . . . . . . . Triggered . | . . . . . . . . Machines | -11 -10 -9 -8 -7 -7 -6 -5 ---------- Run | Scr Mat Mat Mat Fac DSF Fac Fac Machines Disabled . | . . . . . . . . Max in Single Turn . | . . . . . . . . Machines Sabotaged . | . . . . . . . . Garrisons Compromised . | . . . . . . . . Overloaded Fab Kills . | . . . . . . . . Hacking | -11 -10 -9 -8 -7 -7 -6 -5 --------- Run | Scr Mat Mat Mat Fac DSF Fac Fac Machines Accessed 5 | . . 1 1 1 . 2 . Terminals 5 | . . 1 1 1 . 2 . Fabricators . | . . . . . . . . Repair Stations . | . . . . . . . . Recycling Units . | . . . . . . . . Scanalyzers . | . . . . . . . . Garrison Access . | . . . . . . . . Total Hacks 12 | . . 2 5 1 . 4 . Successful 8 | . . 2 2 1 . 3 . Failed 4 | . . . 3 . . 1 . Catastrophic . | . . . . . . . . Database Lockouts . | . . . . . . . . Manual 11 | . . 2 5 . . 4 . Terminals 12 | . . 2 5 1 . 4 . Fabricators . | . . . . . . . . Repair Stations . | . . . . . . . . Recycling Units . | . . . . . . . . Scanalyzers . | . . . . . . . . Garrison Access . | . . . . . . . . Terminal Hacks 5 | . . 1 1 1 . 2 . Open DSF 1 | . . . . 1 . . . Level Access Points 3 | . . 1 1 . . 1 . Unreport Threat 1 | . . . . . . 1 . Fabricator Hacks . | . . . . . . . . Repair Station Hacks . | . . . . . . . . Recycling Unit Hacks . | . . . . . . . . Scanalyzer . | . . . . . . . . Garrison Access Hacks . | . . . . . . . . Unauthorized Hacks 3 | . . 1 1 . . 1 . Terminals 3 | . . 1 1 . . 1 . Botnet 3 | . . 1 1 . . 1 . Fabricators . | . . . . . . . . Repair Stations . | . . . . . . . . Recycling Units . | . . . . . . . . Scanalyzers . | . . . . . . . . Garrison Access . | . . . . . . . . Data Cores Recovered . | . . . . . . . . Used . | . . . . . . . . Hacking Detections 2 | . . . . . . 2 . Full Trace Events . | . . . . . . . . Feedback Events . | . . . . . . . . Feedback Blocked . | . . . . . . . . Robot Schematics Acquired . | . . . . . . . . Robots Built . | . . . . . . . . Authchips . | . . . . . . . . Time . | . . . . . . . . Total Robot Build Rating . | . . . . . . . . Part Schematics Acquired . | . . . . . . . . Parts Built . | . . . . . . . . Authchips . | . . . . . . . . Time . | . . . . . . . . Total Part Build Rating . | . . . . . . . . Parts Repaired . | . . . . . . . . Time . | . . . . . . . . Parts Recycled . | . . . . . . . . Recycled Matter . | . . . . . . . . Retrieved Matter . | . . . . . . . . Retrieved Components . | . . . . . . . . Parts Scanalyzed . | . . . . . . . . Part Schematics Acquired . | . . . . . . . . Parts Damaged . | . . . . . . . . Bothacking | -11 -10 -9 -8 -7 -7 -6 -5 ------------ Run | Scr Mat Mat Mat Fac DSF Fac Fac Used RIF Installer . | . . . . . . . . Robots Hacked . | . . . . . . . . Non-combat . | . . . . . . . . Combat . | . . . . . . . . Robot Hacks Applied . | . . . . . . . . Relay Couplers Released . | . . . . . . . . Fabnet Peak Effective % . | . . . . . . . . Robots Rewired . | . . . . . . . . Allies Hacked . | . . . . . . . . Hacks Repelled . | . . . . . . . . Allies | -11 -10 -9 -8 -7 -7 -6 -5 -------- Run | Scr Mat Mat Mat Fac DSF Fac Fac Total Allies . | . . . . . . . . Largest Group . | . . . . . . . . Highest-Rated Group . | . . . . . . . . Highest-Rated Ally . | . . . . . . . . Total Orders . | . . . . . . . . Ally Attacks . | . . . . . . . . Total Damage . | . . . . . . . . Kills . | . . . . . . . . Allies Corrupted . | . . . . . . . . Allies Melted . | . . . . . . . . Intel | -11 -10 -9 -8 -7 -7 -6 -5 ------- Run | Scr Mat Mat Mat Fac DSF Fac Fac Robot Analysis Total . | . . . . . . . . Derelict Logs Recovered . | . . . . . . . . Drone Launches . | . . . . . . . . Drone Recoveries . | . . . . . . . . Exploration | -11 -10 -9 -8 -7 -7 -6 -5 ------------- Run | Scr Mat Mat Mat Fac DSF Fac Fac Turns Passed 727 | 1 72 39 66 55 40 189 265 Spaces Moved 1098 | 1 81 73 128 96 59 209 451 Core 972 | 1 81 73 128 95 56 154 384 Treads . | . . . . . . . . Legs 1 | . . . . . 1 . . Wheels 2 | . . . . 1 1 . . Hover 56 | . . . . . 1 55 . Flight 67 | . . . . . . . 67 Fastest Speed 45 | 100 50 50 50 50 50 50 45 Average Speed 57 | 100 81 50 50 50 53 73 50 Slowest Speed 140 | 100 100 50 50 80 140 140 70 Overloaded Moves . | . . . . . . . . Propulsion Burnouts . | . . . . . . . . Robots Hopped . | . . . . . . . . Cave-ins Triggered . | . . . . . . . . Exploration Rate (%) 21 | 2 21 11 28 5 78 10 16 Regions Visited 7 Branch Regions . Pre-discovered Areas . | . . . . . . . . Known Exits Taken 4 | . . 1 1 1 . 1 . Unknown Exits Taken 2 | 1 1 . . . . . . Scrap Searched . | . . . . . . . . Spaces Dug 10 | . . . . 1 . 9 . Terrain Destroyed 10 | . . . . 1 . 9 . Melee 10 | . . . . 1 . 9 . Projectile . | . . . . . . . . AOE . | . . . . . . . . Terrain Rammed . | . . . . . . . . Walls Destroyed . | . . . . . . . . Machines Disabled . | . . . . . . . . Actions | -11 -10 -9 -8 -7 -7 -6 -5 --------- Run | Scr Mat Mat Mat Fac DSF Fac Fac Total 1146 | 2 87 74 129 100 64 222 468 Wait 1 | . . . . 1 . . . Move 1091 | . 80 72 127 95 58 208 451 Hop . | . . . . . . . . Pick Up 5 | . 1 . . 2 1 1 . Fast Attach 16 | . 2 . . . 5 1 8 Attach 7 | . . 2 2 1 . 2 . Detach . | . . . . . . . . Swap . | . . . . . . . . Drop 6 | 2 4 . . . . . . Fire . | . . . . . . . . Melee 20 | . . . . 1 . 10 9 Ram . | . . . . . . . . Kick . | . . . . . . . . Crush . | . . . . . . . . Escape Stasis . | . . . . . . . . Rewire . | . . . . . . . . Trap . | . . . . . . . . Miscellaneous . | . . . . . . . . Route ------- -11/Scrapyard -10/Materials -9/Materials (discovered 3 exits: *Mat x3) -8/Materials (discovered 3 exits: *Fac x3) -7/Factory -7/DSF -6/Factory (discovered 4 exits: *Fac x4) -5/Factory History --------- Turn | Location | Event 2 | -11/Scrapyard | Discovered new exit (range 0) 2 | -11/Scrapyard | Entered Materials 67 | -10/Materials | Discovered new exit (range 15) 74 | -10/Materials | Entered another Materials area 74 | -9/Materials | Evolved 2 slots: Propulsion x2 87 | -9/Materials | Identified exit to Materials 113 | -9/Materials | Entered another Materials area 113 | -8/Materials | Evolved 2 slots: Propulsion x2 144 | -8/Materials | Identified exit to Factory 179 | -8/Materials | Entered Factory 179 | -7/Factory | Evolved 2 slots: Propulsion x2 234 | -7/Factory | Identified exit to DSF 234 | -7/Factory | Entered DSF 256 | -7/DSF | Discovered new exit (range 16) 265 | -7/DSF | Additional patrols routed to DSF 274 | -7/DSF | Entered Factory 274 | -6/Factory | Evolved 2 slots: Propulsion x2 296 | -6/Factory | Lost 4 parts (4n) 314 | -6/Factory | Build established: Mutant 356 | -6/Factory | Identified exit to Factory 463 | -6/Factory | Entered another Factory area 463 | -5/Factory | Evolved 2 slots: Propulsion x2 492 | -5/Factory | Lost 3 parts (3n) 708 | -5/Factory | Core integrity fell below 50% 717 | -5/Factory | Lost 12 parts (12n) 723 | -5/Factory | Core integrity fell below 20% 728 | -5/Factory | Destroyed by H-71 Marshal with Heavy Mass Driver Last Messages --------------- 00691_ ALERT: Hostiles spotted, dispatching reinforcements to Terminal F005. 00709_ System corrupted: Heat flow error (+299). 00713_ ALERT: Rogue bot located, Programmers report to Factory Zone 7G. 00714_ Sneak attack on K-01 Serf. 00714_ Destroyed Wheel. 00714_ K-01 Serf system corrupted by crushing effect. 00715_ K-01 Serf system terminally corrupted. 00715_ Lgt. Ion Engine fried. 00717_ ALERT: Suspicious intruders detected, dispatching Cutter reinforcements to area. 00717_ Acquired 13 matter. 00719_ R-10 Processor collects Corrupted Sml. Matter Pod. 00720_ Knocked back. 00722_ Hacking Suite severed. 00723_ Maul destroyed. 00724_ 5JBA8I4TAZMG&UGKZ WV>LIF